fUSD/lending_fUSD_20250417
["ID","MTS","AMOUNT","RATE_DAILY","PERIOD"]
[358231916,1744859439624,-500.0,0.00052054,120]
[358231917,1744859439634,-500.0,0.00052054,2]
[358231918,1744859439644,-500.0,0.00052054,120]
[358231919,1744859439653,-500.0,0.00052054,120]
[358231920,1744859439663,-500.0,0.00052054,120]
[358231921,1744859439672,-500.0,0.00052054,120]
[358231922,1744859439681,-500.0,0.00052054,120]
[358231923,1744859439691,-500.0,0.00052054,120]
[358231924,1744859439700,-500.0,0.00052054,120]
[358231925,1744859439710,-628.92,0.00052054,120]
[358231926,1744859439719,-504.0901111,0.00052054,120]
[358231927,1744859439729,-593.77,0.00052054,120]
[358231928,1744859439739,-503.42595301,0.00052054,120]
[358231929,1744859439748,-500.0,0.00052054,120]
[358231930,1744859439758,-1351.1,0.00052054,120]
[358231931,1744859439767,-530.41871699,0.00052054,120]
[358231932,1744859439777,-500.0,0.00052054,120]
[358231933,1744859439786,-500.0,0.00052054,120]
[358231934,1744859439796,-500.0,0.00052054,120]
[358231935,1744859439809,-500.0,0.00052054,120]
[358231936,1744859439819,-505.06725915,0.00052054,120]
[358231937,1744859439828,-500.0,0.00052054,120]
[358231938,1744859439838,-500.0,0.00052054,120]
[358231939,1744859439847,-847.22,0.00052054,120]
[358231940,1744859439859,-500.0,0.00052054,120]
[358231941,1744859439879,-500.0,0.00052054,120]
[358231942,1744859439895,-500.0,0.00052054,120]
[358231943,1744859439905,-500.0,0.00052054,120]
[358231944,1744859439915,-500.0,0.00052054,120]
[358231945,1744859439924,-500.0,0.00052054,120]
[358231946,1744859439934,-500.0,0.00052054,120]
[358231947,1744859439943,-1086.38,0.00052054,120]
[358231948,1744859439953,-508.35585769,0.00052054,120]
[358231949,1744859439962,-500.0,0.00052054,120]
[358231950,1744859439972,-586.91283386,0.00052054,120]
[358231951,1744859439981,-500.0,0.00052054,120]
[358231952,1744859439991,-894.41,0.00052054,120]
[358231953,1744859440001,-596.02058482,0.00052054,120]
[358231954,1744859440010,-1245.86,0.00052054,120]
[358231955,1744859440020,-1000.0,0.00052054,120]
[358231956,1744859440029,-500.0,0.00052054,120]
[358231957,1744859440040,-173.49669189,0.00052054,120]
[358231958,1744859440049,-500.0,0.00052054,120]
[358231959,1744859440059,-500.0,0.00052054,120]
[358231960,1744859440069,-500.0,0.00052054,120]
[358231961,1744859440078,-500.0,0.00052054,120]
[358231962,1744859440087,-1700.81,0.00052054,120]
[358231963,1744859440096,-601.93,0.00052054,120]
[358231964,1744859440106,-500.0,0.00052054,120]
[358231965,1744859440115,-973.29,0.00052054,120]
[358231966,1744859440124,-553.70326164,0.00052054,120]
[358231967,1744859440134,-500.0,0.00052054,120]
[358231968,1744859440143,-503.9122892,0.00052054,120]
[358231969,1744859440153,-500.0,0.00052054,120]
[358231970,1744859440162,-507.84848916,0.00052054,120]
[358231971,1744859440172,-500.0,0.00052054,120]
[358231972,1744859440181,-500.0,0.00052054,120]
[358231973,1744859440191,-772.08,0.00052054,120]
[358231974,1744859440200,-500.0,0.00052054,120]
[358231975,1744859440209,-500.0,0.00052054,120]
[358231976,1744859440219,-500.0,0.00052054,120]
[358231977,1744859440228,-500.0,0.00052054,120]
[358231978,1744859440237,-500.0,0.00052054,120]
[358231979,1744859440247,-500.0,0.00052054,120]
[358231980,1744859440257,-500.0,0.00052054,120]
[358231981,1744859440266,-508.1890735,0.00052054,120]
[358231982,1744859440275,-509.61933992,0.00052054,120]
[358231984,1744859440286,-500.0,0.00052054,120]
[358231985,1744859440296,-1313.41,0.00052054,120]
[358231986,1744859440306,-500.0,0.00052054,120]
[358231987,1744859440316,-500.0,0.00052054,120]
[358231988,1744859440326,-500.0,0.00052054,120]
[358231989,1744859440336,-500.0,0.00052054,120]
[358231991,1744859440346,-500.0,0.00052054,120]
[358231992,1744859440356,-500.0,0.00052054,120]
[358231993,1744859440366,-500.0,0.00052054,120]
[358231994,1744859440376,-500.0,0.00052054,120]
[358231995,1744859440385,-500.0,0.00052054,120]
[358231996,1744859440395,-510.35502275,0.00052054,120]
[358231997,1744859440577,-500.0,0.00052054,120]
[358231998,1744859440600,-500.0,0.00052054,120]
[358231999,1744859440610,-513.16022116,0.00052054,120]
[358232000,1744859440620,-1400.15,0.00052054,120]
[358232001,1744859440629,-599.97,0.00052054,120]
[358232002,1744859440639,-1387.76,0.00052054,120]
[358232003,1744859440648,-500.0,0.00052054,120]
[358232004,1744859440658,-545.11,0.00052054,120]
[358232005,1744859440667,-500.0,0.00052054,120]
[358232006,1744859440676,-1656.69,0.00052054,120]
[358232007,1744859440687,-500.0,0.00052054,120]
[358232008,1744859440697,-500.0,0.00052054,120]
[358232009,1744859440707,-500.0,0.00052054,120]
[358232010,1744859440716,-500.0,0.00052054,120]
[358232011,1744859440726,-500.0,0.00052054,120]
[358232012,1744859440735,-1595.93,0.00052054,120]
[358232013,1744859440744,-499.40560064,0.00052054,120]
[358232014,1744859440754,-500.0,0.00052054,120]
[358232015,1744859440764,-500.0,0.00052054,120]
[358232016,1744859440773,-1305.33,0.00052054,120]
[358232017,1744859440783,-519.06,0.00052054,120]
[358232018,1744859440792,-505.24034728,0.00052054,120]
[358232019,1744859440804,-500.0,0.00052054,120]
[358232020,1744859440814,-500.0,0.00052054,120]
[358232021,1744859440823,-500.0,0.00052054,120]
[358232022,1744859440833,-500.0,0.00052054,120]
[358232023,1744859440843,-500.0,0.00052054,120]
[358232024,1744859440853,-648.86,0.00052054,120]
[358232025,1744859440863,-504.31705053,0.00052054,120]
[358232026,1744859440872,-500.0,0.00052054,120]
[358232027,1744859440882,-500.0,0.00052054,120]
[358232028,1744859440892,-500.0,0.00052054,120]
[358232029,1744859440901,-500.0,0.00052054,120]
[358232030,1744859440911,-568.33,0.00052054,120]
[358232031,1744859440920,-510.68163171,0.00052054,120]
[358232032,1744859440930,-500.0,0.00052054,120]
[358232033,1744859440940,-344.10063723,0.00052054,120]
[358232034,1744859440949,-500.0,0.00052054,120]
[358232035,1744859440958,-500.0,0.00052054,120]
[358232036,1744859440967,-956.43,0.00052054,120]
[358232037,1744859440976,-500.0,0.00052054,120]
[358232038,1744859440985,-500.0,0.00052054,120]
[358232039,1744859440995,-501.39636854,0.00052054,120]
[358232040,1744859441005,-500.0,0.00052054,120]
[358232041,1744859441015,-500.0,0.00052054,120]
[358232042,1744859441025,-500.0,0.00052054,120]
[358232043,1744859441035,-500.0,0.00052054,120]
[358232044,1744859441044,-896.32,0.00052054,120]
[358232045,1744859441054,-514.94,0.00052054,120]
[358232046,1744859441064,-500.0,0.00052054,120]
[358232047,1744859441073,-1343.0,0.00052054,120]
[358232048,1744859441083,-500.0,0.00052054,120]
[358232049,1744859441093,-500.0,0.00052054,120]
[358232050,1744859441102,-500.0,0.00052054,120]
[358232051,1744859441111,-507.03851591,0.00052054,120]
[358232052,1744859441120,-500.0,0.00052054,120]
[358232053,1744859441130,-500.0,0.00052054,120]
[358232054,1744859441140,-502.92,0.00052054,120]
[358232055,1744859441149,-503.52149542,0.00052054,120]
[358232056,1744859441159,-500.0,0.00052054,120]
[358232057,1744859441168,-1204.69,0.00052054,120]
[358232058,1744859441178,-500.0,0.00052054,120]
[358232059,1744859441188,-500.0,0.00052054,120]
[358232060,1744859441198,-500.0,0.00052054,120]
[358232061,1744859441207,-500.0,0.00052054,120]
[358232062,1744859441217,-500.0,0.00052054,120]
[358232063,1744859441226,-562.03,0.00052054,14]
[358232064,1744859441235,-500.0,0.00052054,120]
[358232065,1744859441246,-352.46367318,0.00052054,120]
[358232066,1744859441256,-519.28,0.00052054,120]
[358232067,1744859441267,-500.0,0.00052054,120]
[358232068,1744859441277,-500.0,0.00052054,120]
[358232069,1744859441287,-625.33,0.00052054,120]
[358232070,1744859441296,-983.38,0.00052054,120]
[358232071,1744859441307,-668.68,0.00052054,120]
[358232072,1744859441317,-500.0,0.00052054,120]
[358232073,1744859441327,-500.0,0.00052054,120]
[358232074,1744859441337,-519.9414459,0.00052054,120]
[358232075,1744859441346,-831.75,0.00052054,120]
[358232076,1744859441356,-500.0,0.00052054,120]
[358232077,1744859441366,-500.0,0.00052054,120]
[358232078,1744859441375,-2030.38,0.00052054,120]
[358232079,1744859441385,-500.0,0.00052054,120]
[358232080,1744859441394,-1294.22,0.00052054,120]
[358232081,1744859441404,-500.0,0.00052054,120]
[358232082,1744859441414,-500.0,0.00052054,120]
[358232083,1744859441424,-882.47,0.00052054,120]
[358232084,1744859441433,-752.38,0.00052054,120]
[358232085,1744859441443,-500.0,0.00052054,120]
[358232086,1744859441452,-605.99,0.00052054,120]
[358232087,1744859441463,-541.93160792,0.00052054,120]
[358232088,1744859441473,-500.0,0.00052054,120]
[358232089,1744859441483,-1716.0,0.00052054,120]
[358232090,1744859441493,-500.0,0.00052054,120]
[358232091,1744859441503,-610.04,0.00052054,120]
[358232092,1744859441512,-710.52,0.00052054,120]
[358232093,1744859441522,-500.0,0.00052054,120]
[358232094,1744859441532,-2572.46,0.00052054,120]
[358232095,1744859441541,-544.28110448,0.00052054,120]
[358232096,1744859441550,-500.0,0.00052054,120]
[358232097,1744859441560,-500.0,0.00052054,120]
[358232098,1744859441570,-500.0,0.00052054,120]
[358232099,1744859441580,-1009.79,0.00052054,30]
[358232100,1744859441590,-500.0,0.00052054,120]
[358232101,1744859441599,-500.0,0.00052054,120]
[358232102,1744859441609,-500.0,0.00052054,120]
[358232103,1744859441618,-500.0,0.00052054,120]
[358232104,1744859441628,-500.0,0.00052054,120]
[358232105,1744859441639,-568.51,0.00052054,120]
[358232106,1744859441649,-1129.41,0.00052054,120]
[358232107,1744859441658,-500.0,0.00052054,14]
[358232108,1744859441668,-1681.73,0.00052054,120]
[358232109,1744859441678,-500.0,0.00052054,120]
[358232110,1744859441688,-500.0,0.00052054,120]
[358232111,1744859441698,-451.46745174,0.00052054,120]
[358232112,1744859441712,-500.0,0.00052054,120]
[358232113,1744859441725,-495.0,0.00052054,120]
[358232114,1744859441735,-531.79,0.00052054,120]
[358232115,1744859441745,-597.47597344,0.00052054,120]
[358232116,1744859441755,-500.0,0.00052054,120]
[358232117,1744859441766,-1439.24,0.00052054,120]
[358232118,1744859441776,-1817.47,0.00052054,120]
[358232119,1744859441786,-500.0,0.00052054,120]
[358232120,1744859441796,-2000.0,0.00052054,2]
[358232121,1744859441809,-500.0,0.00052054,120]
[358232122,1744859441818,-500.0,0.00052054,120]
[358232123,1744859441828,-500.0,0.00052054,120]
[358232124,1744859441838,-500.0,0.00052054,120]
[358232125,1744859441847,-726.64,0.00052054,120]
[358232126,1744859441857,-1349.69,0.00052054,120]
[358232127,1744859441866,-500.0,0.00052054,120]
[358232128,1744859441876,-884.02,0.00052054,120]
[358232129,1744859441885,-550.17,0.00052054,120]
[358232130,1744859441895,-1439.51,0.00052054,120]
[358232131,1744859441904,-757.12,0.00052054,120]
[358232132,1744859441914,-500.0,0.00052054,30]
[358232133,1744859441923,-650.0,0.00052054,120]
[358232134,1744859441933,-601.29524987,0.00052054,120]
[358232135,1744859441943,-521.20257305,0.00052054,120]
[358232136,1744859441953,-500.0,0.00052054,120]
[358232137,1744859441963,-838.39,0.00052054,120]
[358232138,1744859441973,-500.0,0.00052054,120]
[358232139,1744859441983,-515.10553339,0.00052054,120]
[358232140,1744859441993,-1666.45,0.00052054,120]
[358232141,1744859442002,-1117.32,0.00052054,120]
[358232142,1744859442012,-637.82374794,0.00052054,120]
[358232143,1744859442021,-500.0,0.00052054,120]
[358232144,1744859442031,-500.0,0.00052054,120]
[358232145,1744859442041,-500.0,0.00052054,120]
[358232146,1744859442050,-720.6,0.00052054,120]
[358232147,1744859442060,-500.0,0.00052054,120]
[358232148,1744859442071,-500.0,0.00052054,120]
[358232149,1744859442080,-500.0,0.00052054,120]
[358232150,1744859442090,-500.0,0.00052054,120]
[358232151,1744859442100,-500.0,0.00052054,120]
[358232152,1744859442110,-500.0,0.00052054,120]
[358232153,1744859442119,-927.12,0.00052054,120]
[358232154,1744859442128,-500.0,0.00052054,120]
[358232155,1744859442139,-500.0,0.00052054,120]
[358232156,1744859442148,-500.0,0.00052054,120]
[358232157,1744859442157,-500.0,0.00052054,120]
[358232158,1744859442167,-2076.67,0.00052054,120]
[358232159,1744859442178,-500.0,0.00052054,120]
[358232160,1744859442187,-833.01,0.00052054,120]
[358232161,1744859442196,-521.97,0.00052054,120]
[358232162,1744859442206,-559.37,0.00052054,120]
[358232163,1744859442217,-2350.19,0.00052054,120]
[358232164,1744859442227,-541.50803072,0.00052054,120]
[358232165,1744859442237,-508.48208423,0.00052054,120]
[358232166,1744859442247,-947.82,0.00052054,120]
[358232167,1744859442257,-500.0,0.00052054,120]
[358232168,1744859442266,-1344.54,0.00052054,120]
[358232169,1744859442276,-1470.85,0.00052054,120]
[358232170,1744859442286,-512.22,0.00052054,30]
[358232171,1744859442295,-1455.59508012,0.00052054,120]
[358232172,1744859442330,-349.58491988,0.00052054,120]
[358232173,1744859442339,-500.0,0.00052054,120]
[358232174,1744859442348,-387.72384039,0.00052054,120]
[358232175,1744859442360,-399.74615961,0.00052054,120]
[358232176,1744859442370,-1855.58,0.00052054,120]
[358232177,1744859442379,-500.0,0.00052054,120]
[358232178,1744859442389,-500.0,0.00052054,120]
[358232179,1744859442398,-524.99,0.00052054,120]
[358232180,1744859442407,-562.60186341,0.00052054,120]
[358232181,1744859442417,-500.0,0.00052054,120]
[358232182,1744859442426,-979.26,0.00052054,120]
[358232183,1744859442436,-500.0,0.00052054,120]
[358232184,1744859442445,-500.0,0.00052054,120]
[358232185,1744859442455,-678.33,0.00052054,120]
[358232186,1744859442465,-500.0,0.00052054,120]
[358232187,1744859442478,-500.0,0.00052054,120]
[358232189,1744859442487,-726.71,0.00052054,120]
[358232190,1744859442497,-500.0,0.00052054,120]
[358232191,1744859442507,-500.0,0.00052054,120]
[358232192,1744859442517,-500.0,0.00052054,120]
[358232193,1744859442526,-1446.98,0.00052054,120]
[358232195,1744859442536,-500.0,0.00052054,120]
[358232197,1744859442545,-1966.57,0.00052054,120]
[358232199,1744859442554,-587.80548378,0.00052054,120]
[358232201,1744859442563,-151.0152751,0.00052054,120]
[358232203,1744859442573,-500.0,0.00052054,120]
[358232204,1744859442582,-500.0,0.00052054,120]
[358232205,1744859442592,-1851.56,0.00052054,120]
[358232206,1744859442602,-493.48023813,0.00052054,120]
[358232207,1744859442611,-500.0,0.00052054,120]
[358232208,1744859442620,-295.01608991,0.00052054,120]
[358232209,1744859442629,-582.23,0.00052054,120]
[358232210,1744859442639,-1335.51,0.00052054,120]
[358232211,1744859442648,-1729.42,0.00052054,120]
[358232212,1744859442657,-500.0,0.00052054,120]
[358232213,1744859442668,-500.0,0.00052054,120]
[358232214,1744859442677,-500.0,0.00052054,120]
[358232215,1744859442686,-500.0,0.00052054,120]
[358232216,1744859442695,-500.0,0.00052054,120]
[358232217,1744859442704,-500.0,0.00052054,120]
[358232218,1744859442714,-500.0,0.00052054,120]
[358232219,1744859442723,-1579.12,0.00052054,120]
[358232220,1744859442732,-1842.89,0.00052054,120]
[358232221,1744859442741,-500.0,0.00052054,120]
[358232222,1744859442751,-1992.51,0.00052054,120]
[358232223,1744859442760,-701.61,0.00052054,120]
[358232224,1744859442769,-500.0,0.00052054,120]
[358232225,1744859442778,-500.0,0.00052054,120]
[358232226,1744859442788,-500.0,0.00052054,120]
[358232227,1744859442797,-500.0,0.00052054,120]
[358232228,1744859442811,-584.3343032,0.00052054,120]
[358232229,1744859442821,-500.0,0.00052054,120]
[358232230,1744859442830,-500.0,0.00052054,120]
[358232231,1744859442840,-575.17,0.00052054,120]
[358232232,1744859442850,-567.52,0.00052054,120]
[358232233,1744859442859,-500.0,0.00052054,120]
[358232234,1744859442868,-500.0,0.00052054,120]
[358232235,1744859442878,-646.58,0.00052054,120]
[358232236,1744859442888,-555.85881828,0.00052054,120]
[358232237,1744859442897,-500.0,0.00052054,120]
[358232238,1744859442907,-500.0,0.00052054,120]
[358232239,1744859442916,-506.82413881,0.00052054,120]
[358232240,1744859442925,-500.0,0.00052054,120]
[358232241,1744859442935,-518.10124322,0.00052054,120]
[358232242,1744859442945,-500.0,0.00052054,120]
[358232243,1744859442954,-500.0,0.00052054,120]
[358232244,1744859442964,-500.0,0.00052054,120]
[358232246,1744859442973,-511.89,0.00052054,120]
[358232247,1744859442982,-500.0,0.00052054,120]
[358232248,1744859442992,-525.72,0.00052054,120]
[358232249,1744859443002,-500.0,0.00052054,120]
[358232251,1744859443012,-500.0,0.00052054,120]
[358232252,1744859443021,-1929.7,0.00052054,120]
[358232262,1744859443090,-1491.73,0.00052054,120]
[358232264,1744859443100,-500.0,0.00052054,120]
[358232265,1744859443109,-500.75282081,0.00052054,120]
[358232267,1744859443118,-695.56,0.00052054,120]
[358232269,1744859443127,-500.0,0.00052054,120]
[358232271,1744859443136,-500.35462036,0.00052054,120]
[358232273,1744859443145,-545.78,0.00052054,120]
[358232275,1744859443155,-500.0,0.00052054,120]
[358232277,1744859443164,-500.0,0.00052054,120]
[358232279,1744859443173,-500.0,0.00052054,120]
[358232281,1744859443182,-500.0,0.00052054,120]
[358232283,1744859443191,-500.0,0.00052054,120]
[358232285,1744859443200,-644.14120547,0.00052054,120]
[358232287,1744859443209,-500.0,0.00052054,120]
[358232289,1744859443218,-528.89,0.00052054,120]
[358232291,1744859443227,-500.0,0.00052054,120]
[358232293,1744859443236,-1445.71,0.00052054,120]
[358232295,1744859443245,-500.0,0.00052054,120]
[358232297,1744859443255,-1620.22,0.00052054,120]
[358232299,1744859443263,-500.0,0.00052054,120]
[358232301,1744859443272,-500.0,0.00052054,120]
[358232303,1744859443282,-607.31,0.00052054,120]
[358232305,1744859443291,-500.0,0.00052054,120]
[358232307,1744859443300,-500.0,0.00052054,120]
[358232309,1744859443310,-2198.65,0.00052054,120]
[358232311,1744859443319,-500.0,0.00052054,120]
[358232313,1744859443328,-500.0,0.00052054,120]
[358232315,1744859443337,-500.0,0.00052054,120]
[358232317,1744859443346,-507.42376495,0.00052054,120]
[358232319,1744859443355,-500.0,0.00052054,120]
[358232321,1744859443364,-500.0,0.00052054,120]
[358232322,1744859443376,-949.9,0.00052054,120]
[358232324,1744859443386,-2503.52,0.00052054,120]
[358232326,1744859443395,-1232.14,0.00052054,120]
[358232328,1744859443404,-500.0,0.00052054,120]
[358232330,1744859443413,-516.49113659,0.00052054,120]
[358232332,1744859443421,-538.92046213,0.00052054,120]
[358232334,1744859443430,-500.0,0.00052054,120]
[358232336,1744859443439,-500.0,0.00052054,120]
[358232338,1744859443449,-500.0,0.00052054,120]
[358232340,1744859443458,-500.0,0.00052054,120]
[358232342,1744859443467,-500.0,0.00052054,120]
[358232344,1744859443477,-500.0,0.00052054,120]
[358232346,1744859443486,-516.88977753,0.00052054,120]
[358232348,1744859443495,-500.0,0.00052054,120]
[358232350,1744859443505,-500.0,0.00052054,120]
[358232352,1744859443514,-500.0,0.00052054,120]
[358232354,1744859443523,-500.89065652,0.00052054,120]
[358232356,1744859443532,-500.0,0.00052054,120]
[358232358,1744859443542,-685.74,0.00052054,120]
[358232360,1744859443550,-500.0,0.00052054,120]
[358232362,1744859443559,-500.0,0.00052054,120]
[358232364,1744859443568,-500.0,0.00052054,120]
[358232365,1744859443577,-500.0,0.00052054,120]
[358232367,1744859443586,-500.0,0.00052054,120]
[358232369,1744859443595,-500.0,0.00052054,120]
[358232371,1744859443604,-1473.91,0.00052054,120]
[358232373,1744859443613,-500.0,0.00052054,120]
[358232375,1744859443623,-500.0,0.00052054,120]
[358232377,1744859443632,-500.0,0.00052054,120]
[358232379,1744859443641,-356.59261109,0.00052054,120]
[358232381,1744859443650,-1381.1,0.00052054,120]
[358232383,1744859443660,-799.28,0.00052054,120]
[358232385,1744859443669,-300.0,0.00052054,120]
[358232387,1744859443678,-500.0,0.00052054,120]
[358232389,1744859443688,-1251.11,0.00052054,120]
[358232391,1744859443698,-500.0,0.00052054,120]
[358232393,1744859443707,-1428.74,0.00052054,120]
[358232395,1744859443716,-677.17,0.00052054,120]
[358232397,1744859443726,-1225.63,0.00052054,120]
[358232399,1744859443736,-570.9,0.00052054,120]
[358232401,1744859443745,-517.77433538,0.00052054,120]
[358232403,1744859443755,-500.0,0.00052054,120]
[358232405,1744859443764,-1939.52,0.00052054,120]
[358232407,1744859443773,-500.0,0.00052054,120]
[358232409,1744859443783,-500.0,0.00052054,120]
[358232411,1744859443792,-500.0,0.00052054,120]
[358232413,1744859443803,-500.0,0.00052054,120]
[358232415,1744859443814,-500.0,0.00052054,120]
[358232417,1744859443823,-500.0,0.00052054,120]
[358232419,1744859443832,-1000.0,0.00052054,120]
[358232421,1744859443841,-500.0,0.00052054,120]
[358232422,1744859443850,-852.38,0.00052054,120]
[358232424,1744859443859,-500.0,0.00052054,120]
[358232426,1744859443868,-500.0,0.00052054,120]
[358232428,1744859443877,-190.62971039,0.00052054,120]
[358232430,1744859443887,-500.0,0.00052054,120]
[358232432,1744859443896,-500.0,0.00052054,120]
[358232433,1744859443906,-500.0,0.00052054,120]
[358232435,1744859443915,-500.0,0.00052054,120]
[358232437,1744859443924,-537.84101929,0.00052054,120]
[358232439,1744859443934,-500.0,0.00052054,120]
[358232441,1744859443943,-1204.91,0.00052054,120]
[358232442,1744859443952,-500.0,0.00052054,120]
[358232443,1744859443962,-500.0,0.00052054,120]
[358232444,1744859443971,-500.0,0.00052054,120]
[358232445,1744859443981,-500.0,0.00052054,120]
[358232446,1744859443991,-514.62229691,0.00052054,120]
[358232447,1744859444000,-543.04727522,0.00052054,120]
[358232448,1744859444010,-500.0,0.00052054,120]
[358232449,1744859444019,-500.0,0.00052054,120]
[358232450,1744859444028,-500.0,0.00052054,120]
[358232451,1744859444038,-753.72,0.00052054,120]
[358232452,1744859444047,-500.0,0.00052054,120]
[358232453,1744859444056,-500.0,0.00052054,120]
[358232454,1744859444066,-482.24411677,0.00052054,120]
[358232455,1744859444076,-500.0,0.00052054,120]
[358232456,1744859444088,-500.0,0.00052054,120]
[358232457,1744859444097,-500.0,0.00052054,120]
[358232458,1744859444106,-2804.57,0.00052054,120]
[358232459,1744859444116,-1019.91,0.00052054,120]
[358232460,1744859444128,-1354.09,0.00052054,120]
[358232461,1744859444139,-500.0,0.00052054,120]
[358232462,1744859444149,-500.0,0.00052054,120]
[358232463,1744859444158,-500.0,0.00052054,120]
[358232464,1744859444168,-500.0,0.00052054,120]
[358232465,1744859444178,-500.0,0.00052054,120]
[358232466,1744859444187,-500.0,0.00052054,120]
[358232467,1744859444198,-778.53,0.00052054,120]
[358232468,1744859444208,-500.0,0.00052054,120]
[358232469,1744859444220,-1201.77,0.00052054,120]
[358232470,1744859444230,-677.21,0.00052054,120]
[358232471,1744859444239,-500.0,0.00052054,120]
[358232472,1744859444248,-499.66657579,0.00052054,120]
[358232473,1744859444258,-500.0,0.00052054,120]
[358232474,1744859444267,-500.0,0.00052054,120]
[358232475,1744859444276,-500.0,0.00052054,120]
[358232476,1744859444286,-500.0,0.00052054,120]
[358232477,1744859444295,-500.0,0.00052054,120]
[358232478,1744859444305,-976.54,0.00052054,120]
[358232479,1744859444314,-500.0,0.00052054,120]
[358232480,1744859444323,-500.0,0.00052054,120]
[358232481,1744859444332,-500.0,0.00052054,120]
[358232482,1744859444341,-766.57,0.00052054,120]
[358232483,1744859444351,-500.0,0.00052054,120]
[358232484,1744859444362,-500.0,0.00052054,120]
[358232485,1744859444371,-500.0,0.00052054,120]
[358232486,1744859444381,-500.0,0.00052054,120]
[358232487,1744859444392,-504.67238165,0.00052054,120]
[358232488,1744859444401,-500.0,0.00052054,120]
[358232489,1744859444411,-500.0,0.00052054,120]
[358232490,1744859444421,-500.0,0.00052054,120]
[358232491,1744859444431,-888.06,0.00052054,120]
[358232492,1744859444441,-514.48838992,0.00052054,120]
[358232493,1744859444450,-500.0,0.00052054,120]
[358232494,1744859444460,-500.0,0.00052054,120]
[358232495,1744859444469,-552.46,0.00052054,120]
[358232496,1744859444479,-500.0,0.00052054,120]
[358232497,1744859444489,-549.89,0.00052054,120]
[358232498,1744859444499,-500.0,0.00052054,120]
[358232499,1744859444509,-503.96924376,0.00052054,120]
[358232500,1744859444520,-500.0,0.00052054,120]
[358232501,1744859444530,-543.92744221,0.00052054,60]
[358232502,1744859444540,-500.0,0.00052054,120]
[358232503,1744859444548,-543.95,0.00052054,120]
[358232504,1744859444557,-500.0,0.00052054,120]
[358232505,1744859444567,-509.59012493,0.00052054,120]
[358232506,1744859444575,-500.0,0.00052054,120]
[358232507,1744859444584,-500.0,0.00052054,120]
[358232508,1744859444593,-721.75,0.00052054,120]
[358232509,1744859444602,-500.0,0.00052054,120]
[358232510,1744859444611,-500.0,0.00052054,120]
[358232511,1744859444620,-500.0,0.00052054,120]
[358232512,1744859444628,-500.0,0.00052054,120]
[358232513,1744859444638,-500.0,0.00052054,120]
[358232514,1744859444647,-1804.57,0.00052054,120]
[358232515,1744859444657,-1178.25,0.00052054,120]
[358232516,1744859444666,-500.0,0.00052054,120]
[358232517,1744859444676,-566.07,0.00052054,120]
[358232518,1744859444687,-509.18499359,0.00052054,120]
[358232519,1744859444700,-1301.41,0.00052054,120]
[358232520,1744859444709,-574.44,0.00052054,120]
[358232521,1744859444718,-500.0,0.00052054,120]